[Event "44th Chess Olympiad Open 2022"]
[Site "Chennai"]
[Date "2022.08.01"]
[Round "4.29"]
[White "Choukri, Adel"]
[Black "Urazayev, Arystanbek"]
[Result "0-1"]
[WhiteElo "2306"]
[BlackElo "2430"]
[Annotator "TA"]
[PlyCount "230"]
[EventDate "2022.??.??"]
[TimeControl "60"]

{[%evp 18,230,26,30,0,5,21,18,27,0,23,21,23,18,47,2,47,53,45,40,52,36,70,70,71,
71,71,71,71,65,66,56,56,22,16,13,31,22,12,12,56,22,39,42,53,20,20,20,20,20,21,
20,31,27,27,27,31,20,78,20,27,27,27,20,27,0,29,0,4,-3,0,0,0,-25,0,-18,8,8,27,0,
27,12,27,0,27,27,27,27,27,27,27,27,27,20,27,27,27,27,56,56,56,56,90,90,90,90,
90,75,90,90,90,90,90,90,90,13,13,13,39,1,1,1,1,1,1,0,0,-33,0,0,0,0,0,0,0,0,0,0,
0,0,0,0,0,0,0,0,0,0,0,0,0,0,0,0,0,0,0,-290,0,0,0,0,0,0,0,0,0,0,0,0,0,0,0,0,0,0,
0,0,0,0,0,-29971,-29960,-29961,-29961,-29962,-29963,-29959,-29963,-29965,
-29968,-29969,-29969,-29976,-29977,-29976,-29975,-29976,-29977,-29977,-29975,
-29977,-29979,-29976,-29973,-29982,-29976,-29982,-29981,-29983,-29977,-29990,
-29991,-29994,-5114]} 1. d4 {[%emt 0:00:15]} Nf6 {[%emt 0:00:55]} 2. c4 {
[%emt 0:00:08]} e6 {[%emt 0:00:57]} 3. Nf3 {[%emt 0:00:14]} d5 {[%emt 0:00:16]}
4. Nc3 {[%emt 0:00:12]} a6 {[%emt 0:08:31]} 5. cxd5 {[%emt 0:01:22]} exd5 {
[%emt 0:00:03]} 6. Bg5 {[%emt 0:00:13]} Be6 {[%emt 0:00:04]} 7. e3 {[%emt 0:00:
00]} Nbd7 {[%emt 0:00:21]} 8. Bd3 {[%emt 0:02:16]} c6 {[%emt 0:00:07]} 9. h3 {
[%emt 0:01:15]} Bd6 {[%emt 0:00:10]} 10. O-O {[%emt 0:01:11]} Qc7 {[%emt 0:00:
00]} 11. Qd2 {[%emt 0:00:37]} O-O {[%emt 0:03:10]} 12. Bf4 {[%emt 0:00:13]}
Rfe8 {[%emt 0:03:03]} 13. Rac1 {[%emt 0:00:33]} Nh5 {[%emt 0:04:50]} 14. Bxd6 {
[%emt 0:00:59]} Qxd6 {[%emt 0:00:04]} 15. Na4 {[%emt 0:03:46]} g6 {[%emt 0:00:
00]} 16. Nc5 {[%emt 0:03:18]} Ra7 {[%emt 0:01:39]} 17. b4 {[%emt 0:09:30]} Ng7
{[%emt 0:03:22]} 18. a4 {[%emt 0:06:05]} Bf5 {[%emt 0:00:23]} 19. Be2 {[%emt 0:
00:00]} f6 {[%emt 0:22:18]} 20. Rc3 {[%emt 0:20:16]} Qe7 {[%emt 0:06:54]} 21.
Rfc1 {[%emt 0:02:53]} Nxc5 {[%emt 0:01:45]} 22. bxc5 {[%emt 0:00:22]} Raa8 {
[%emt 0:01:18]} 23. Rb3 {[%emt 0:00:52]} Rac8 {[%emt 0:02:00]} 24. Ne1 {
[%emt 0:11:14]} Rc7 {[%emt 0:00:57]} 25. Bg4 {[%emt 0:01:41]} Bxg4 {[%emt 0:00:
00]} 26. hxg4 {[%emt 0:00:03]} Qd7 {[%emt 0:00:54]} 27. Rcb1 {[%emt 0:01:44]}
Re7 {[%emt 0:00:52]} 28. Qd1 {[%emt 0:00:16]} Ne6 {[%emt 0:01:56]} 29. Nf3 {
[%emt 0:03:30]} Kg7 {[%emt 0:01:19]} 30. R1b2 {[%emt 0:03:13]} Ng5 {[%emt 0:00:
00]} 31. Nxg5 {[%emt 0:00:09]} fxg5 {[%emt 0:00:02]} 32. Qf3 {[%emt 0:00:17]}
Qe8 {[%emt 0:02:10]} 33. Qg3 {[%emt 0:01:57]} Rcd7 {[%emt 0:00:12]} 34. Rb1 {
[%emt 0:01:04]} Rc7 {[%emt 0:01:21]} 35. f3 {[%emt 0:03:27]} Rcd7 {[%emt 0:00:
00]} 36. Kf2 {[%emt 0:00:09]} Kg8 {[%emt 0:01:07]} 37. Qh2 {[%emt 0:01:17]} Qd8
{[%emt 0:02:20]} (37... h5 $11) 38. Rb6 {[%emt 0:00:16]} (38. Qh6 $16) 38...
Qf8 {[%emt 0:00:22]} 39. Qg3 {[%emt 0:02:43]} Qe8 {[%emt 0:02:50]} 40. R1b3 {
[%emt 0:00:41]} Kg7 {[%emt 0:01:46]} 41. Qh2 {[%emt 0:36:32]} Qf8 {[%emt 0:00:
00]} 42. Qh1 {[%emt 0:01:34]} Qf7 {[%emt 0:33:28]} 43. Qb1 {[%emt 0:03:09]} Rc7
{[%emt 0:07:02]} 44. Qb2 {[%emt 0:00:00]} Kg8 {[%emt 0:00:00]} 45. Qc3 {
[%emt 0:00:00]} Qf8 {[%emt 0:00:00]} 46. Rb1 {[%emt 0:00:00]} Qh6 {[%emt 0:00:
00]} 47. Qe1 {[%emt 0:00:00]} Qf8 {[%emt 0:00:00]} ({Don't play} 47... Qh2 48.
Qh1 Qxh1 49. Rxh1 $16) 48. R6b3 {[%emt 0:00:00]} Rcd7 {[%emt 0:00:00]} 49. Ke2
{[%emt 0:00:00]} Qb8 {[%emt 0:00:00]} 50. R1b2 {[%emt 0:00:00]} Qf8 {[%emt 0:
00:00]} 51. Qg3 {[%emt 0:00:00]} Qd8 {[%emt 0:00:00]} 52. Rb6 {[%emt 0:00:00]}
Qf8 {[%emt 0:00:00]} 53. Qh2 {[%emt 0:00:00]} Kg7 {[%emt 0:00:00]} 54. Kf2 {
[%emt 0:00:00]} Kg8 {[%emt 0:00:00]} 55. a5 {[%emt 0:00:00]} Kg7 {[%emt 0:00:
00]} 56. Rb1 {[%emt 0:00:26]} Kg8 {[%emt 0:00:00]} 57. R6b3 {[%emt 0:00:35]}
Qd8 {[%emt 0:00:00]} 58. Ra3 {[%emt 0:02:13]} Qf8 {[%emt 0:00:00]} 59. Rh1 {
[%emt 0:00:41]} Rd8 {[%emt 0:04:12]} 60. Qh6 {[%emt 0:04:01]} Qxh6 {[%emt 0:00:
00]} 61. Rxh6 {[%emt 0:00:02]} Kg7 {[%emt 0:00:18]} 62. Rh2 {[%emt 0:00:27]}
Kf6 {[%emt 0:00:20]} 63. Ra1 {[%emt 0:00:27]} Kg7 {[%emt 0:01:32]} 64. Rah1 {
[%emt 0:00:30]} Kg8 {[%emt 0:00:06]} 65. Rb1 {[%emt 0:00:07]} Rdd7 {[%emt 0:00:
00]} 66. g3 {[%emt 0:00:20]} ({White should try} 66. Ke2 $16) 66... Kg7 $11 {
[%emt 0:00:53]} 67. Re1 {[%emt 0:01:10]} Rd8 {[%emt 0:00:22]} 68. f4 {[%emt 0:
00:00]} (68. Reh1 $5 {[%cal Rh2h7]} Rh8 69. Ke2 $14) 68... Kf6 {[%emt 0:02:09]}
69. Re2 {[%emt 0:01:53]} Rdd7 {[%emt 0:00:31]} 70. Kf3 {[%emt 0:00:09]} Re4 {
[%emt 0:01:00]} 71. Rh1 {[%emt 0:00:31]} Rde7 {[%emt 0:00:15]} 72. Rb1 {
[%emt 0:00:25]} h5 {[%emt 0:00:15]} 73. gxh5 {[%emt 0:01:08]} gxh5 {[%emt 0:00:
00]} 74. Rb3 {[%emt 0:00:14]} h4 {[%emt 0:01:17]} 75. fxg5+ {[%emt 0:01:06]}
Kxg5 {[%emt 0:00:04]} 76. gxh4+ {[%emt 0:00:06]} Rxh4 {[%emt 0:00:10]} 77. Rf2
{[%emt 0:00:42]} Rh1 {[%emt 0:01:21]} 78. Rfb2 {[%emt 0:00:43]} Rh3+ {[%emt 0:
00:00]} 79. Ke2 {[%emt 0:00:09]} Rexe3+ {[%emt 0:00:11]} 80. Rxe3 {[%emt 0:00:
00]} Rh2+ {[%emt 0:00:02]} 81. Kd3 {[%emt 0:00:57]} Rxb2 {[%emt 0:00:04]} 82.
Re7 {[%emt 0:00:04]} Kf6 {[%emt 0:00:48]} 83. Rh7 {[%emt 0:00:19]} Rb3+ {
[%emt 0:00:03]} 84. Kc2 {[%emt 0:00:04]} Rb5 {[%emt 0:00:03]} 85. Kc3 {[%emt 0:
00:00]} Kf5 {[%emt 0:00:50]} 86. Re7 {[%emt 0:00:34]} Kf4 {[%emt 0:01:45]} 87.
Kd3 $2 {[%emt 0:00:56]} (87. Rg7 $11) 87... Kf5 $2 {[%emt 0:01:35]} ({And not} 
87... Rxa5 88. Rf7+ Kg5 89. Rxb7 $11) ({Black should play} 87... Rb3+ $19 88.
Kc2 Ra3 89. Rxb7 Ke4) 88. Kc3 $11 {[%emt 0:00:14]} Rxa5 {[%emt 0:00:00]} 89.
Rf7+ {[%emt 0:01:11]} Ke6 {[%emt 0:00:31]} (89... Ke4 $5 90. Re7+ Kf4 91. Rxb7
Ra3+ 92. Kb2 Rf3 $11) 90. Rxb7 {[%emt 0:00:07]} Ra3+ {[%emt 0:00:00]} 91. Kb2 {
[%emt 0:01:30]} Rd3 {[%emt 0:00:23]} 92. Rc7 {[%emt 0:00:23]} Rxd4 {[%emt 0:00:
14]} 93. Rxc6+ {[%emt 0:00:04]} Ke5 {[%emt 0:00:13]} 94. Rxa6 {[%emt 0:00:04]}
Rc4 {[%emt 0:00:02]} 95. c6 {[%emt 0:00:47]} d4 {[%emt 0:00:00]} 96. Kb3 {
[%emt 0:00:16]} Rc1 {[%emt 0:00:28]} 97. Kb2 {[%emt 0:01:34]} Rc5 {[%emt 0:00:
08]} 98. Kb3 {[%emt 0:00:39]} d3 {[%emt 0:00:38]} 99. Kb4 $2 {[%emt 0:00:43]} (
99. Ra2 $11) 99... Rxc6 {[%emt 0:01:40]} 100. Rxc6 {[%emt 0:00:14]} d2 {
[%emt 0:00:01]} 101. Rc5+ {[%emt 0:00:08]} Kd6 {[%emt 0:00:00]} 102. Rc8 {
[%emt 0:00:45]} Kd7 {[%emt 0:00:15]} 103. Rc2 {[%emt 0:00:36]} d1=Q {[%emt 0:
00:07]} 104. Kc3 {[%emt 0:00:10]} Kc6 {[%emt 0:01:11]} 105. Kb3+ {[%emt 0:00:
53]} Kd5 {[%emt 0:00:00]} 106. Kc3 {[%emt 0:00:19]} Qa1+ {[%emt 0:00:19]} 107.
Kb3 {[%emt 0:00:43]} Kd4 {[%emt 0:00:22]} 108. Rd2+ {[%emt 0:00:18]} Ke3 {
[%emt 0:00:04]} 109. Rd6 {[%emt 0:00:12]} Qe5 {[%emt 0:00:00]} 110. Rb6 {
[%emt 0:00:31]} Qc5 {[%emt 0:00:30]} 111. Rh6 {[%emt 0:00:43]} Qc8 {[%emt 0:01:
45]} 112. Kb2 {[%emt 0:00:41]} Qb7+ {[%emt 0:00:44]} 113. Kc2 {[%emt 0:00:12]}
Qg2+ {[%emt 0:00:28]} 114. Kb1 {[%emt 0:00:18]} Kd3 {[%emt 0:00:00]} 115. Rh8 {
[%emt 0:01:00]} Qc2+ {[%emt 0:00:07]} 0-1

[Event "44th Chess Olympiad Open 2022"]
[Site "Chennai"]
[Date "2022.08.01"]
[Round "4.30"]
[White "Sebenik, Matej"]
[Black "Arias Santana, Mauricio"]
[Result "1-0"]
[WhiteElo "2512"]
[BlackElo "2318"]
[Annotator "TA"]
[PlyCount "67"]
[EventDate "2022.??.??"]
[TimeControl "60"]

{[%evp 21,67,26,28,22,27,22,45,43,41,42,66,55,87,83,87,83,87,93,111,124,118,
127,281,282,279,272,289,282,287,293,327,312,323,319,251,250,515,539,589,494,
841,818,29984,29985,29990,29991,29991,29992]} 1. d4 {[%emt 0:00:10]} Nf6 {
[%emt 0:00:03]} 2. Nf3 {[%emt 0:00:17]} d5 {[%emt 0:00:07]} 3. Bf4 {[%emt 0:00:
00]} c5 {[%emt 0:00:08]} 4. e3 {[%emt 0:00:07]} Nc6 {[%emt 0:00:31]} 5. Nbd2 {
[%emt 0:00:11]} cxd4 {[%emt 0:00:06]} 6. exd4 {[%emt 0:00:09]} Bg4 {[%emt 0:00:
00]} 7. c3 {[%emt 0:00:54]} e6 {[%emt 0:00:52]} 8. Qb3 {[%emt 0:00:15]} Qc8 {
[%emt 0:00:20]} 9. Bd3 {[%emt 0:00:52]} Be7 {[%emt 0:00:06][%cal Yf8e7,Ye7d8,
Yd8c7]} 10. O-O {[%emt 0:00:14]} Bh5 {[%emt 0:00:02]} 11. Rfe1 {[%emt 0:08:12]}
O-O {[%emt 0:00:48] 11...Bg6 might become the main line.} 12. Ng5 {[%emt 0:05:
46] [#] B13: Caro-Kann: Exchange Variation and Panov-Botvinnik Attack.} Bd8
$146 {[%emt 0:08:59]} ({Predecessor:} 12... Bg6 13. Bxg6 hxg6 14. Ndf3 Nh5 15.
Bd2 Qc7 16. Qc2 Nf4 17. Bxf4 Qxf4 18. h4 Rac8 19. Qd3 Rfe8 {0-1 (50) Shubin,K 
(2475)-Narayanan,S (2559) Chess.com INT 2022}) 13. Qc2 {[%emt 0:22:23][%cal
Rg5h7]} Bg6 {[%emt 0:00:17]} 14. Bxg6 {[%emt 0:00:03] White is slightly better.
} hxg6 {[%emt 0:00:11]} 15. Ndf3 {[%emt 0:00:04]} Nh7 {[%emt 0:36:53]} 16. h4 {
[%emt 0:07:27] White is much more active.} Nxg5 {[%emt 0:00:26]} 17. hxg5 {
[%emt 0:00:04]} Bc7 {[%emt 0:00:34]} 18. Qd2 {[%emt 0:08:55]} Rd8 {[%emt 0:12:
19]} 19. g3 {[%emt 0:14:34]} b5 {[%emt 0:04:59]} 20. Kg2 {[%emt 0:01:27]} Kf8 {
[%emt 0:17:40]} 21. Rh1 {[%emt 0:10:18]} Qb8 $2 {[%emt 0:00:00] [#]} (21...
Bxf4 $16 22. Qxf4 Qb8) 22. Bxc7 $18 {[%emt 0:02:41]} Qxc7 {[%emt 0:00:00]} 23.
Rh7 {[%emt 0:00:13]} Rab8 {[%emt 0:00:00]} 24. a3 {[%emt 0:06:48][%cal Ya2a3,
Ya3b4]} Qd6 {[%emt 0:03:07]} 25. Rah1 {[%emt 0:00:35]} a5 {[%emt 0:00:11]} 26.
b4 {[%emt 0:01:23]} axb4 {[%emt 0:00:00]} 27. axb4 {[%emt 0:00:05]} Ra8 {
[%emt 0:02:23]} 28. Ne1 {[%emt 0:05:09][%cal Yf3e1,Ye1d3,Yd3f4] aiming for Nd3.
} Ra3 $2 {[%emt 0:10:35]} (28... e5 {might work better.} 29. Nd3 e4) 29. Nd3 {
[%emt 0:00:14]} Rda8 {[%emt 0:00:00]} 30. Qe3 {[%emt 0:01:41]} R8a7 {[%emt 0:
00:41]} (30... Ke7 $142 31. Rxg7 Rf8) 31. Qf3 {[%emt 0:01:19][%cal Yh7g7] [#]
Rxg7! is the strong threat.} e5 {[%emt 0:00:29]} 32. dxe5 {[%emt 0:00:48]
White mates.} Qe6 {[%emt 0:00:47]} 33. Nf4 {[%emt 0:00:34][%csl Yd5,Ye6]} Qf5 {
[%emt 0:00:38]} 34. Qxd5 {[%emt 0:00:59] Black got outplayed after the opening.
Weighted Error Value: White=0.05 (flawless) /Black=0.65} 1-0

[Event "44th Chess Olympiad Open 2022"]
[Site "Chennai"]
[Date "2022.08.01"]
[Round "4.30"]
[White "Markoja, Boris"]
[Black "Chaves Sanchez, Gabriel A"]
[Result "1-0"]
[WhiteElo "2452"]
[BlackElo "2125"]
[Annotator "TA"]
[PlyCount "67"]
[EventDate "2022.??.??"]
[TimeControl "60"]

{[%evp 18,67,-7,-16,-18,-26,-19,-25,-22,-30,-17,-12,-17,-35,0,0,0,-1,0,0,0,-1,
0,-19,22,19,52,43,100,98,100,70,195,190,190,156,237,232,233,234,294,298,456,
455,344,210,197,207,849,758,730,723]} 1. Nf3 {[%emt 0:00:05]} d5 {[%emt 0:00:
00]} 2. g3 {[%emt 0:00:09]} Nf6 {[%emt 0:00:22]} 3. Bg2 {[%emt 0:00:10]} c6 {
[%emt 0:01:12]} 4. O-O {[%emt 0:00:35]} Bf5 {[%emt 0:00:16]} 5. d3 {[%emt 0:00:
00]} e6 {[%emt 0:02:52]} 6. Nbd2 {[%emt 0:01:35]} Bc5 {[%emt 0:05:14]} 7. c4 {
[%emt 0:03:35]} h6 {[%emt 0:08:04]} 8. Qc2 {[%emt 0:02:31]} Nbd7 {[%emt 0:00:
00]} 9. b3 {[%emt 0:06:02]} O-O {[%emt 0:02:54]} 10. Bb2 {[%emt 0:04:41]} Qb6 {
[%emt 0:05:36] A12: English Opening: 1...c6 with b3 by White.} 11. h3 {[%emt 0:
00:00]} Rfe8 {[%emt 0:04:06]} 12. a3 {[%emt 0:11:15]} a5 {[%emt 0:05:18] [#]
Black has an edge.} 13. Ne5 $146 {[%emt 0:01:08]} ({Predecessor:} 13. Bc3 e5
14. e4 Bg6 15. Nh4 Bh7 16. cxd5 cxd5 17. exd5 Rac8 18. Nc4 Qa6 19. Qd2 {
1-0 (41) Allemann,A (2220)-Reinhart,E (2129) Germany 2006}) 13... Nxe5 {
[%emt 0:12:37]} 14. Bxe5 {[%emt 0:00:06]} Nd7 {[%emt 0:00:05]} 15. Bb2 {
[%emt 0:01:15]} Bd4 {[%emt 0:01:07]} 16. Rab1 {[%emt 0:02:40]} Bxb2 {[%emt 0:
00:00]} 17. Rxb2 {[%emt 0:00:22]} Qc5 {[%emt 0:02:59]} 18. b4 {[%emt 0:00:43]}
axb4 {[%emt 0:00:17]} 19. axb4 {[%emt 0:00:05]} Qe7 {[%emt 0:01:05]} 20. e4 {
[%emt 0:10:21]} dxe4 {[%emt 0:00:40]} 21. dxe4 {[%emt 0:00:07]} Bh7 {[%emt 0:
00:00]} 22. c5 $1 {[%emt 0:00:26]} Ra6 {[%emt 0:12:45]} (22... b5 $14) 23. Nc4
$16 {[%emt 0:03:47]} Rea8 {[%emt 0:01:17]} 24. Qd2 {[%emt 0:03:14] White is
more active.} Ra1 {[%emt 0:03:13] [#] A mistake that costs the game.} (24... b6
$14) 25. Rxa1 $1 $18 {[%emt 0:02:28]} Rxa1+ {[%emt 0:00:05]} 26. Kh2 {[%emt 0:
00:00]} Ra7 {[%emt 0:01:07]} (26... h5 $16 {was necessary.} 27. Nd6 h4) 27. e5
{[%emt 0:00:22]} Bg6 {[%emt 0:01:01]} 28. f4 {[%emt 0:01:23]} Nb8 {[%emt 0:00:
00]} 29. Nd6 {[%emt 0:03:50] [#] Strongly threatening Nc8.} Qc7 {[%emt 0:00:50]
Against Nc8} (29... Qd8 $142 30. b5 cxb5 31. Bxb7 Ra5) 30. b5 {[%emt 0:01:21]
Threatens to win with b6.} Ra8 {[%emt 0:01:32]} 31. Nxb7 {[%emt 0:09:09]} Qxb7
{[%emt 0:00:24]} 32. bxc6 {[%emt 0:00:04]} Qa7 {[%emt 0:00:37]} (32... Qc7) 33.
c7 {[%emt 0:00:18]} Qxc7 {[%emt 0:00:29]} 34. Bxa8 {[%emt 0:00:05] Weighted
Error Value: White=0.09 (flawless) /Black=0.33} 1-0

[Event "44th Chess Olympiad Open 2022"]
[Site "Chennai"]
[Date "2022.08.01"]
[Round "4.30"]
[White "Chinchilla Miranda, Eugenio"]
[Black "Dobrovoljc, Vid"]
[Result "1/2-1/2"]
[WhiteElo "2206"]
[BlackElo "2398"]
[Annotator "TA"]
[PlyCount "118"]
[EventDate "2022.??.??"]
[TimeControl "60"]

{[%evp 13,118,0,0,0,0,0,0,0,0,0,0,-33,-36,-39,-59,-56,0,0,0,0,0,-62,-67,-66,
-59,-72,-39,-43,-37,-41,-54,-43,-36,-43,-31,-44,-32,-64,-60,-45,-7,-14,0,-4,11,
7,215,208,220,215,214,203,231,227,234,227,269,216,208,197,182,143,451,535,464,
462,453,295,906,781,910,910,907,899,738,28,19,0,594,754,887,633,497,0,0,0,0,0,
0,0,820,0,0,0,0,0,0,0,0,0,0,0,0,0,0,0,0]} 1. d4 {[%emt 0:00:04]} Nf6 {[%emt 0:
00:00]} 2. c4 {[%emt 0:00:07]} e6 {[%emt 0:00:19]} 3. Nc3 {[%emt 0:00:08]} Bb4
{[%emt 0:00:22]} 4. Qc2 {[%emt 0:00:17]} O-O {[%emt 0:00:58]} 5. e4 {[%emt 0:
00:00]} d5 {[%emt 0:00:53]} 6. e5 {[%emt 0:00:10]} Ne4 {[%emt 0:00:02]} 7. Bd3
{[%emt 0:00:14]} c5 $1 {[%emt 0:00:09]} 8. Nge2 {[%emt 0:00:14] E32:
Nimzo-Indian: Classical (4 Qc2): 4...0-0.} cxd4 {[%emt 0:00:07]} 9. Nxd4 {
[%emt 0:00:10]} Nd7 {[%emt 0:00:11]} 10. Bf4 {[%emt 0:00:12]} Qh4 {[%emt 0:00:
00]} 11. g3 {[%emt 0:00:20]} Qh3 {[%emt 0:00:03]} 12. Bf1 {[%emt 0:04:50]
Inhibits Qg2.} Qh5 $36 {[%emt 0:02:30] [#] Black has the initiative.} 13. f3
$146 {[%emt 0:23:08]} ({Predecessor:} 13. Be2 Qg6 14. Rc1 dxc4 15. Bxc4 Nxc3
16. bxc3 Qxc2 17. Rxc2 Be7 18. h4 Nb6 19. Bb3 {0-1 (42) Bendana Aragon,J (2280)
-Bresadola,G (2349) ICCF email 2014}) 13... Nxc3 {[%emt 0:26:02]} 14. bxc3 {
[%emt 0:00:30]} Ba3 {[%emt 0:01:12]} (14... Bc5 $15 15. g4 (15. cxd5 Nxe5 16.
O-O-O Ng6 $17) 15... Qh4+ 16. Bg3 Qg5) 15. g4 $11 {[%emt 0:15:05]} Qh4+ {
[%emt 0:01:10]} 16. Bg3 {[%emt 0:00:19]} Qg5 {[%emt 0:01:37]} 17. f4 {[%emt 0:
05:13]} ({White should try} 17. cxd5 $11 Qe3+ 18. Be2) 17... Qxg4 $15 {[%emt 0:
00:35]} 18. cxd5 {[%emt 0:00:55]} exd5 {[%emt 0:01:52]} 19. Qb3 {[%emt 0:02:56]
} Bc5 {[%emt 0:04:35]} (19... Be7 $5 {[%cal Re7h4]} 20. Be2 Qh3 $15) 20. Be2 {
[%emt 0:08:55]} Qh3 {[%emt 0:01:04]} 21. Qxd5 {[%emt 0:00:36]} Bxd4 {[%emt 0:
00:23]} 22. Qxd4 {[%emt 0:02:39]} Nb6 {[%emt 0:00:12]} 23. Bf1 {[%emt 0:13:40]}
Qh5 {[%emt 0:10:12]} 24. Bg2 {[%emt 0:01:43]} Bh3 {[%emt 0:00:00]} 25. Qe4 {
[%emt 0:03:58]} Bxg2 {[%emt 0:05:20]} 26. Qxg2 {[%emt 0:00:00]} Rad8 {[%emt 0:
07:38]} 27. O-O {[%emt 0:00:00]} Nc4 {[%emt 0:00:08]} 28. Qxb7 {[%emt 0:04:46]}
Rd3 {[%emt 0:09:03]} 29. Qe4 {[%emt 0:00:00]} Rxc3 {[%emt 0:00:00]} (29... Qg6
$11 30. Qxg6 (30. Qxc4 Rxg3+ 31. hxg3 Qxg3+ 32. Kh1 Qh3+ 33. Kg1 Qg3+ 34. Kh1
Qh3+ 35. Kg1 Qg3+ $11) 30... hxg6) 30. Be1 $1 $18 {[%emt 0:00:00]} Rh3 {
[%emt 0:01:13] White must now prevent ...Ne3.} 31. Qxc4 {[%emt 0:00:00]} Rxh2 {
[%emt 0:00:18]} 32. Bg3 {[%emt 0:00:00]} Rd2 {[%emt 0:00:00]} 33. Rf2 {[%emt 0:
00:00]} Rxf2 {[%emt 0:00:00]} 34. Kxf2 {[%emt 0:00:00]} Qf5 {[%emt 0:00:59]}
35. Rc1 {[%emt 0:00:03]} h5 {[%emt 0:00:09]} 36. Qc2 {[%emt 0:00:00]} Qh3 {
[%emt 0:00:09] [#]} 37. f5 $1 {[%emt 0:01:37] Threatens to win with Rg1.} h4 $2
{[%emt 0:00:08]} (37... Rd8 $16 {is more resistant.}) 38. Bf4 {[%emt 0:00:12]}
Qg4 {[%emt 0:01:26]} 39. Qe4 {[%emt 0:03:18]} Rd8 {[%emt 0:03:47]} 40. Re1 {
[%emt 0:04:26]} Kh8 $2 {[%emt 0:00:00]} (40... h3 41. e6 fxe6 42. fxe6 (42. f6
h2 $16) 42... Rf8) 41. e6 {[%emt 0:26:44]} fxe6 {[%emt 0:00:00]} 42. fxe6 {
[%emt 0:00:22]} Rf8 {[%emt 0:00:00]} 43. Ke3 {[%emt 0:00:43]} Qh3+ {[%emt 0:00:
00]} 44. Ke2 $2 {[%emt 0:00:50]} (44. Kd2 $18 Qa3 45. e7 Qxa2+ 46. Ke3 Qb3+ 47.
Ke2) 44... Qg4+ $1 $11 {[%emt 0:00:00]} 45. Ke3 $2 {[%emt 0:01:30]} (45. Qf3
$11 Qxe6+ 46. Kf2) 45... Qh3+ $18 {[%emt 0:00:00]} 46. Kd4 {[%emt 0:02:36]}
Rd8+ {[%emt 0:00:34]} 47. Ke5 {[%emt 0:00:00] Hoping for e7.} (47. Kc4 Qa3 48.
Bc7 Qa4+ 49. Kc5 Qa3+ 50. Kb5 Qb2+ 51. Kc6 Qc3+ 52. Kb7 Qb2+ 53. Kxa7 Qxa2+ 54.
Kb7 Ra8 $18) 47... Re8 {[%emt 0:00:09]} 48. Kd6 {[%emt 0:00:37]} (48. Qc6 $18
Rf8 49. Re4) 48... Qa3+ $11 {[%emt 0:00:28]} 49. Kc6 {[%emt 0:00:33] aiming
for e7.} Qa6+ {[%emt 0:00:00]} 50. Kc5 {[%emt 0:00:01]} Rc8+ {[%emt 0:03:04]}
51. Kb4 {[%emt 0:01:36]} Qxa2 $2 {[%emt 0:00:33] [#]} (51... Rc6 $11 52. Qxc6 (
52. e7 {gets mated.} Qb7+ 53. Ka3 Rc3+ 54. Ka4 Qa6+ 55. Kb4 Qa3+ 56. Kb5 Rc5#)
52... Qxc6) 52. Be5 $2 {[%emt 0:01:17]} (52. Re2 $1 $18 {[%cal Re2a2]} a5+ 53.
Kb5) 52... a5+ {[%emt 0:01:57] The position is equal.} 53. Kb5 {[%emt 0:00:03]
[%cal Ye5g7] Threatening mate with Bxg7+!} Qb3+ {[%emt 0:02:11]} 54. Kxa5 {
[%emt 0:00:00][%cal Ye5g7] Strongly threatening Bxg7+!} Rc5+ {[%emt 0:07:49]}
55. Ka6 {[%emt 0:00:01]} Qxe6+ {[%emt 0:00:14]} 56. Kb7 {[%emt 0:00:01][%cal
Ye5g7] Bxg7+! would kill now.} Qd7+ {[%emt 0:03:43]} (56... Kg8 $5 57. Bh2 Qd7+
58. Kb6 Rb5+ 59. Ka6 Rc5 $11) 57. Kb6 {[%emt 0:01:43]} Qb5+ {[%emt 0:02:42]}
58. Ka7 {[%emt 0:00:00][%cal Ye5g7]} Qa5+ {[%emt 0:01:57]} 59. Kb7 {[%emt 0:00:
00][%cal Ye5g7] Intending Bxg7+! and mate.} Qb5+ {[%emt 0:03:17] Weighted
Error Value: White=0.57/Black=0.20 (precise)} (59... Kg8 $5 60. Bh2 (60. Bd6 {
leads to mate.} Qb5+ 61. Ka7 Qd7+ 62. Qb7 Ra5+ 63. Kb8 Qd8+ 64. Qc8 Rb5+ 65.
Ka7 Qxc8) 60... Qb5+ 61. Ka7 Rc4 62. Qe8+ Qxe8 63. Rxe8+ Kf7 $11) 1/2-1/2